bitfinex/quotes_BTCUSD_20240820
["timestamp","ask_amount","ask_price","bid_price","bid_amount"]
[1724176822110,0.23518564,59185.0,59184.0,0.024]
[1724176822322,0.23518564,59185.0,59184.0,0.02]
[1724176822529,0.1591358,59185.0,59184.0,0.027]
[1724176822763,0.1591358,59185.0,59184.0,0.0249031]
[1724176822951,0.15913563,59185.0,59184.0,0.0319031]
[1724176824263,0.20984173,59185.0,59184.0,0.0319031]
[1724176824691,0.20984174,59185.0,59184.0,0.0319031]
[1724176824901,0.13114174,59185.0,59184.0,0.0319031]
[1724176827123,0.11537711,59185.0,59184.0,0.0319031]
[1724176827334,0.13114173,59185.0,59184.0,0.0319031]
[1724176828355,0.15648546,59185.0,59184.0,0.0319031]
[1724176828936,0.14072084,59185.0,59184.0,0.0319031]
[1724176829164,0.15648616,59185.0,59184.0,0.0319031]
[1724176829369,0.23898616,59185.0,59184.0,0.0319031]
[1724176830168,0.16293632,59185.0,59184.0,0.0319031]
[1724176831380,0.23895569,59185.0,59184.0,0.0319031]
[1724176831781,0.16293632,59185.0,59184.0,0.0319031]
[1724176832277,0.18968232,59185.0,59184.0,0.0319031]
[1724176832671,0.21268232,59185.0,59184.0,0.0319031]
[1724176833260,0.21268481,59185.0,59184.0,0.0319031]
[1724176833453,0.18968481,59185.0,59184.0,0.0319031]
[1724176833652,0.26426241,59185.0,59184.0,0.0319031]
[1724176834000,0.09252512,59185.0,59184.0,0.0319031]
[1724176834217,0.01653881,59185.0,59184.0,0.0319031]
[1724176837360,0.01653519,59185.0,59184.0,0.0319031]
[1724176837767,0.01653519,59185.0,59184.0,0.1127031]
[1724176839883,0.01653519,59185.0,59184.0,0.0319031]
[1724176841150,0.01653517,59185.0,59184.0,0.0319031]
[1724176842470,0.01653516,59185.0,59184.0,0.0319031]
[1724176843950,0.01653516,59185.0,59184.0,0.1707031]
[1724176844163,0.01653516,59185.0,59184.0,0.17408188]
[1724176844385,0.000771,59185.0,59184.0,0.2841662]
[1724176844813,0.000821,59191.0,59190.0,0.4376]
[1724176845036,0.000821,59191.0,59190.0,0.5376]
[1724176846672,0.07597825,59205.0,59190.0,0.5376]
[1724176846673,0.053125,59200.0,59199.0,0.438]
[1724176846883,0.053125,59200.0,59199.0,0.4818]
[1724176847092,0.053125,59200.0,59199.0,0.5818]
[1724176847944,0.053125,59200.0,59199.0,0.5958]
[1724176848366,0.053125,59200.0,59199.0,0.5818]
[1724176848571,0.053125,59200.0,59199.0,0.5958]
[1724176848789,0.053125,59200.0,59199.0,0.5818]
[1724176848992,0.053125,59200.0,59199.0,0.60583165]
[1724176849210,0.053125,59200.0,59199.0,0.57603165]
[1724176849421,0.00082,59215.0,59200.0,0.146]
[1724176849630,0.01575425,59214.0,59213.0,0.3787]
[1724176849837,0.00082,59215.0,59213.0,0.3787]
[1724176851293,0.00082,59215.0,59213.0,0.42045793]
[1724176852530,0.00082,59215.0,59213.0,0.43445793]
[1724176852973,0.00082,59215.0,59213.0,0.42045793]
[1724176853177,0.00082,59215.0,59213.0,0.3917]
[1724176853383,0.00082,59215.0,59213.0,0.3098]
[1724176854304,0.0639,59214.0,59207.0,0.2968]
[1724176854746,0.0639,59214.0,59213.0,0.012]
[1724176854968,0.16075628,59214.0,59213.0,0.023]
[1724176855171,0.16075628,59214.0,59213.0,0.011]
[1724176855384,0.16075628,59214.0,59191.0,0.0815]
[1724176855385,0.0798,59210.0,59191.0,0.0815]
[1724176855615,0.07785628,59209.0,59207.0,0.008]
[1724176855825,0.01575628,59208.0,59207.0,0.008]
[1724176856049,0.0798,59207.0,59191.0,0.0815]
[1724176856488,0.0798,59207.0,59194.0,0.33463]
[1724176857138,0.0798,59207.0,59195.0,0.1]
[1724176857344,0.0798,59207.0,59196.0,0.0775]
[1724176857981,0.0808,59207.0,59196.0,0.0775]
[1724176858803,0.0808,59207.0,59196.0,0.3743]
[1724176859007,0.0798,59207.0,59196.0,0.3743]
[1724176859208,0.0808,59207.0,59196.0,0.366013]
[1724176859642,0.0808,59207.0,59196.0,0.3148]
[1724176861679,0.08035772,59206.0,59196.0,0.3148]
[1724176861905,0.2646,59201.0,59196.0,0.018]
[1724176862105,0.0646,59198.0,59196.0,0.018]
[1724176862312,0.03,59199.0,59196.0,0.018]
[1724176862313,0.15755772,59197.0,59196.0,0.018]
[1724176862527,0.2080349,59197.0,59196.0,0.018]
[1724176862741,0.29253805,59197.0,59196.0,0.018]
[1724176862942,0.29269872,59197.0,59196.0,0.007]
[1724176863147,0.39368591,59197.0,59196.0,0.007]
[1724176863353,0.18420414,59197.0,59196.0,0.007]
[1724176863782,2.63470414,59197.0,59196.0,0.007]
[1724176863991,3.1903211,59197.0,59196.0,0.007]
[1724176864206,0.2,59186.0,59184.0,0.0209031]
[1724176864417,1.32665772,59185.0,59184.0,0.0209031]
[1724176865470,1.32665772,59185.0,59184.0,0.0239031]
[1724176866472,1.26055436,59185.0,59184.0,0.0309031]
[1724176866912,1.26055436,59185.0,59184.0,0.0279031]
[1724176867324,1.26055436,59185.0,59184.0,0.0319031]
[1724176868162,1.34336181,59185.0,59184.0,0.0319031]
[1724176868587,1.34336443,59185.0,59184.0,0.0319031]
[1724176868998,1.40606443,59185.0,59184.0,0.0319031]
[1724176869630,3.28023343,59185.0,59184.0,0.0319031]
[1724176869839,3.14506443,59185.0,59184.0,0.0319031]
[1724176870255,3.14506443,59185.0,59184.0,0.0249031]
[1724176870461,3.28023343,59185.0,59184.0,0.0289031]
[1724176870664,4.01473343,59185.0,59184.0,0.0249031]
[1724176870866,4.01473343,59185.0,59184.0,0.0259031]
[1724176871067,4.28507143,59185.0,59184.0,0.0259031]
[1724176871272,4.01473343,59185.0,59184.0,0.0259031]
[1724176871478,4.28507143,59185.0,59184.0,0.0259031]
[1724176871684,4.28507227,59185.0,59184.0,0.0209031]
[1724176871888,4.29007227,59185.0,59184.0,0.0209031]
[1724176872104,4.96241027,59185.0,59184.0,0.0209031]
[1724176872697,5.28320914,59185.0,59184.0,0.0209031]
[1724176872915,5.34867114,59185.0,59184.0,0.0209031]
[1724176873127,5.35167114,59185.0,59184.0,0.0209031]
[1724176873512,5.34867114,59185.0,59184.0,0.0209031]
[1724176873722,5.34367114,59185.0,59184.0,0.0209031]
[1724176874294,5.34667114,59185.0,59184.0,0.0209031]
[1724176874514,5.35167114,59185.0,59184.0,0.0209031]
[1724176874884,5.34667114,59185.0,59184.0,0.0209031]
[1724176875085,5.29621027,59185.0,59184.0,0.0209031]
[1724176875286,5.30221027,59185.0,59184.0,0.0209031]
[1724176875492,5.35267205,59185.0,59184.0,0.0209031]
[1724176875911,5.35467205,59185.0,59184.0,0.0209031]
[1724176876113,5.35267205,59185.0,59184.0,0.0209031]
[1724176876459,5.35167205,59185.0,59184.0,0.0209031]
[1724176876677,5.3516329,59185.0,59184.0,0.0209031]
[1724176876884,5.6269709,59185.0,59184.0,0.0209031]
[1724176877100,5.6229709,59185.0,59184.0,0.0209031]
[1724176877304,5.57254918,59185.0,59184.0,0.0209031]
[1724176877888,5.70748401,59185.0,59184.0,0.0209031]
[1724176878090,5.03087318,59185.0,59184.0,0.0209031]
[1724176878316,4.20236618,59185.0,59184.0,0.0209031]
[1724176878517,4.11956543,59185.0,59184.0,0.0209031]
[1724176879572,4.11956543,59185.0,59184.0,0.0966031]
[1724176879573,4.05686458,59185.0,59184.0,0.0966031]
[1724176879708,3.31436458,59185.0,59184.0,0.0966031]
[1724176879918,3.29859664,59185.0,59184.0,0.0966031]
[1724176880121,3.30659664,59185.0,59184.0,0.0966031]
[1724176880331,3.31936278,59185.0,59184.0,0.0966031]
[1724176880540,3.31936278,59185.0,59184.0,0.0209031]
[1724176880541,3.31536278,59185.0,59184.0,0.0209031]
[1724176880957,3.31836278,59185.0,59184.0,0.0209031]
[1724176881155,3.31918378,59185.0,59184.0,0.0209031]
[1724176881611,3.38528378,59185.0,59184.0,0.0209031]
[1724176881783,3.40828378,59185.0,59184.0,0.0209031]
[1724176884218,3.46758094,59185.0,59184.0,0.0209031]
[1724176884570,4.56752878,59185.0,59184.0,0.0209031]
[1724176884775,4.56452878,59185.0,59184.0,0.0209031]
[1724176885421,4.02385278,59185.0,59184.0,0.0509031]
[1724176886087,4.01985278,59185.0,59184.0,0.0509031]
[1724176886512,4.02385278,59185.0,59184.0,0.0509031]
[1724176886943,4.02685278,59185.0,59184.0,0.0509031]
[1724176887194,4.02385278,59185.0,59184.0,0.0509031]
[1724176887433,4.29719456,59185.0,59184.0,0.0509031]
[1724176887651,4.29319456,59185.0,59184.0,0.0509031]
[1724176888534,4.56753256,59185.0,59184.0,0.0509031]
[1724176889181,4.57053256,59185.0,59184.0,0.0509031]
[1724176889398,4.83787056,59185.0,59184.0,0.0509031]
[1724176889618,4.86161591,59185.0,59184.0,0.0509031]
[1724176889835,4.86061591,59185.0,59184.0,0.0509031]
[1724176890042,4.86161591,59185.0,59184.0,0.0509031]
[1724176890463,4.32093991,59185.0,59184.0,0.0509031]
[1724176890683,4.04660191,59185.0,59184.0,0.0509031]
[1724176890893,3.51443291,59185.0,59184.0,0.0509031]
[1724176891115,3.65060191,59185.0,59184.0,0.0509031]
[1724176891332,3.31918756,59185.0,59184.0,0.0509031]
[1724176891771,3.31918593,59185.0,59184.0,0.0509031]
[1724176892215,3.31918542,59185.0,59184.0,0.0509031]
[1724176893084,3.31518542,59185.0,59184.0,0.0509031]
[1724176893313,3.48035442,59185.0,59184.0,0.0509031]
[1724176893546,3.77442651,59185.0,59184.0,0.0509031]
[1724176893971,3.77142651,59185.0,59184.0,0.0509031]
[1724176894187,3.77342651,59185.0,59184.0,0.0509031]
[1724176896580,4.04376451,59185.0,59184.0,0.0509031]
[1724176896782,4.12196451,59185.0,59184.0,0.0509031]
[1724176897206,4.12196632,59185.0,59184.0,0.0509031]
[1724176897892,3.85162845,59185.0,59184.0,0.0509031]
[1724176898755,3.90204623,59185.0,59184.0,0.0509031]
[1724176898956,3.85162845,59185.0,59184.0,0.0509031]
[1724176899160,3.90207025,59185.0,59184.0,0.0509031]
[1724176899587,3.92725512,59185.0,59184.0,0.0509031]
[1724176900003,3.9114854,59185.0,59184.0,0.0509031]
[1724176900232,3.92725512,59185.0,59184.0,0.0509031]
[1724176900652,4.22280201,59185.0,59184.0,0.0509031]
[1724176900868,4.55544001,59185.0,59184.0,0.0509031]
[1724176901067,4.45460445,59185.0,59184.0,0.0509031]
[1724176901433,4.45560445,59185.0,59184.0,0.0509031]
[1724176902634,4.46582206,59185.0,59184.0,0.0509031]
[1724176902887,4.46482206,59185.0,59184.0,0.0509031]
[1724176903225,4.47182206,59185.0,59184.0,0.0509031]
[1724176903647,4.62307637,59185.0,59184.0,0.0509031]
[1724176903781,4.60430569,59185.0,59184.0,0.0509031]
[1724176904128,4.62307637,59185.0,59184.0,0.0309031]
[1724176904467,4.47182302,59185.0,59184.0,0.0309031]
[1724176904640,4.57182302,59185.0,59184.0,0.0309031]
[1724176905049,4.56882302,59185.0,59184.0,0.0309031]
[1724176905325,4.56982302,59185.0,59184.0,0.0309031]
[1724176906326,4.56882302,59185.0,59184.0,0.0309031]
[1724176906524,4.55860541,59185.0,59184.0,0.0309031]
[1724176907730,3.87742941,59185.0,59184.0,0.0309031]
[1724176907943,3.44892241,59185.0,59184.0,0.0309031]
[1724176908144,3.61994629,59185.0,59184.0,0.0309031]
[1724176908579,3.58409141,59185.0,59184.0,0.0309031]
[1724176908793,3.85442941,59185.0,59184.0,0.0309031]
[1724176909009,4.14776741,59185.0,59184.0,0.0309031]
[1724176909387,4.21036741,59185.0,59184.0,0.0309031]
[1724176909598,4.48170541,59185.0,59184.0,0.0309031]
[1724176912056,4.48370541,59185.0,59184.0,0.0309031]
[1724176912261,4.48570647,59185.0,59184.0,0.0309031]
[1724176912461,4.48570649,59185.0,59184.0,0.0309031]
[1724176913006,4.46993473,59185.0,59184.0,0.0309031]
[1724176913145,4.73534138,59185.0,59184.0,0.0309031]
[1724176914154,5.09832979,59185.0,59184.0,0.0309031]
[1724176914354,5.19469525,59185.0,59184.0,0.0309031]
[1724176914535,4.4065844,59185.0,59184.0,0.0309031]
[1724176914749,4.1342464,59185.0,59184.0,0.0309031]
[1724176914951,4.3819692,59185.0,59184.0,0.0309031]
[1724176915429,4.3779692,59185.0,59184.0,0.0309031]
[1724176915760,4.3749692,59185.0,59184.0,0.0309031]
[1724176915914,4.3789692,59185.0,59184.0,0.0309031]
[1724176916112,4.1292464,59185.0,59184.0,0.0309031]
[1724176916317,4.1252464,59185.0,59184.0,0.0309031]
[1724176916671,4.93524658,59185.0,59184.0,0.0309031]
[1724176916848,4.92147429,59185.0,59184.0,0.0309031]
[1724176917048,4.93724658,59185.0,59184.0,0.0309031]
[1724176917474,4.93524658,59185.0,59184.0,0.0309031]
[1724176918865,4.93724658,59185.0,59184.0,0.0309031]
[1724176921661,4.85464658,59185.0,59184.0,0.0309031]
[1724176924991,4.85664658,59185.0,59184.0,0.0309031]
[1724176925199,4.85864658,59185.0,59184.0,0.0309031]
[1724176925408,4.85464658,59185.0,59184.0,0.0309031]
[1724176927036,3.44915817,59185.0,59184.0,0.1073031]
[1724176927234,2.44865817,59185.0,59184.0,0.1073031]
[1724176927596,2.43288588,59185.0,59184.0,0.1073031]
[1724176927795,2.44865584,59185.0,59184.0,0.1073031]
[1724176928221,2.44665584,59185.0,59184.0,0.1073031]
[1724176928401,2.44265584,59185.0,59184.0,0.1073031]
[1724176928645,2.44465584,59185.0,59184.0,0.1073031]
[1724176928848,2.44865584,59185.0,59184.0,0.0309031]
[1724176929048,2.71999384,59185.0,59184.0,0.0309031]
[1724176929349,2.71599384,59185.0,59184.0,0.0309031]
[1724176929757,2.71999384,59185.0,59184.0,0.0309031]
[1724176929937,2.72399384,59185.0,59184.0,0.0309031]
[1724176930335,2.71999384,59185.0,59184.0,0.0309031]
[1724176930487,2.72399384,59185.0,59184.0,0.0309031]
[1724176930920,2.71999384,59185.0,59184.0,0.0309031]
[1724176931324,2.71979048,59185.0,59184.0,0.0299031]
[1724176931925,2.44945248,59185.0,59184.0,0.0299031]
[1724176933358,2.44945248,59185.0,59184.0,0.1069031]
[1724176933359,2.44945302,59185.0,59184.0,0.1069031]
[1724176935024,2.17911502,59185.0,59184.0,0.1069031]
[1724176935433,2.44945302,59185.0,59184.0,0.1069031]
[1724176935637,2.17911502,59185.0,59184.0,0.1069031]
[1724176936082,2.44945302,59185.0,59184.0,0.1069031]
[1724176936908,2.44945302,59185.0,59184.0,0.0299031]
[1724176937110,2.45145302,59185.0,59184.0,0.0299031]
[1724176937319,2.45345302,59185.0,59184.0,0.0299031]
[1724176938062,2.43768252,59185.0,59184.0,0.0299031]
[1724176938265,2.45345315,59185.0,59184.0,0.0299031]
[1724176938464,2.72379115,59185.0,59184.0,0.0299031]
[1724176938648,2.78559115,59185.0,59184.0,0.0299031]
[1724176938849,2.78559199,59185.0,59184.0,0.0299031]
[1724176939326,3.03532913,59185.0,59184.0,0.0299031]
[1724176940509,3.03532913,59185.0,59184.0,0.0308062]
[1724176941205,3.68066713,59185.0,59184.0,0.0308062]
[1724176941376,3.70379983,59185.0,59184.0,0.01630354]
[1724176941577,3.49778677,59185.0,59184.0,0.01630354]
[1724176941777,3.70308978,59185.0,59184.0,0.01287269]
[1724176942121,3.69908978,59185.0,59184.0,0.01287269]
[1724176942235,3.49178677,59185.0,59184.0,0.01287269]
[1724176942434,3.49578677,59185.0,59184.0,0.01287269]
[1724176942683,3.51356229,59185.0,59184.0,0.01287269]
[1724176942890,3.49379082,59185.0,59184.0,0.01287269]
[1724176943365,3.13413404,59185.0,59184.0,0.01287269]
[1724176943585,3.7298825,59185.0,59184.0,0.01287269]
[1724176943779,3.12759604,59185.0,59184.0,0.01287269]
[1724176943958,3.04279604,59185.0,59184.0,0.01287269]
[1724176944275,2.94679604,59185.0,59184.0,0.01287269]
[1724176944408,2.93879604,59185.0,59184.0,0.01287269]
[1724176944810,2.94479604,59185.0,59184.0,0.01287269]
[1724176945078,2.94279604,59185.0,59184.0,0.01287269]
[1724176945363,2.93679604,59185.0,59184.0,0.01287269]
[1724176945675,3.06179604,59185.0,59184.0,0.01287269]
[1724176946089,3.05979604,59185.0,59184.0,0.01287269]
[1724176946296,3.06579604,59185.0,59184.0,0.01287269]
[1724176946498,3.06579604,59185.0,59184.0,0.09217269]
[1724176946499,2.79545804,59185.0,59184.0,0.09217269]
[1724176946704,2.60201867,59185.0,59184.0,0.09217269]
[1724176946905,2.43077225,59185.0,59184.0,0.09217269]
[1724176947113,2.60201867,59185.0,59184.0,0.09217269]
[1724176947318,2.43077225,59185.0,59184.0,0.09217269]
[1724176947528,2.43176635,59185.0,59184.0,0.09217269]
[1724176947729,2.41499673,59185.0,59184.0,0.09217269]
[1724176947935,2.43076636,59185.0,59184.0,0.09217269]
[1724176950985,2.43076624,59185.0,59184.0,0.09217269]
[1724176951188,2.41499673,59185.0,59184.0,0.09217269]
[1724176951398,2.43376624,59185.0,59184.0,0.09217269]
[1724176951594,2.43076624,59185.0,59184.0,0.09217269]
[1724176951733,2.43376624,59185.0,59184.0,0.09217269]
[1724176952069,2.70610424,59185.0,59184.0,0.01287269]
[1724176952489,2.70210424,59185.0,59184.0,0.01287269]
[1724176953339,2.70110424,59185.0,59184.0,0.01287269]
[1724176953563,2.43076624,59185.0,59184.0,0.09117269]
[1724176954204,2.16042824,59185.0,59184.0,0.15547269]
[1724176954408,2.15952027,59185.0,59184.0,0.15547269]
[1724176955030,1.40044376,59185.0,59184.0,0.15547269]
[1724176955239,1.55138271,59185.0,59184.0,0.15547269]
[1724176956110,1.41621371,59185.0,59184.0,0.15547269]
[1724176957381,1.41221371,59185.0,59184.0,0.15547269]
[1724176957684,0.04932504,59185.0,59184.0,0.15547269]
[1724176958120,0.04732504,59185.0,59184.0,0.15547269]
[1724176958324,0.04532504,59185.0,59184.0,0.15547269]
[1724176958530,0.04332504,59185.0,59184.0,0.15547269]
[1724176958705,0.04732504,59185.0,59184.0,0.15547269]
[1724176958943,0.04932504,59185.0,59184.0,0.15547269]
[1724176959150,0.04332332,59185.0,59184.0,0.15547269]
[1724176959535,0.04432332,59185.0,59184.0,0.15547269]
[1724176959965,0.19642454,59185.0,59184.0,0.15547269]
[1724176960573,0.04632332,59185.0,59184.0,0.15547269]
[1724176960941,0.04432332,59185.0,59184.0,0.15547269]
[1724176961130,0.04332332,59185.0,59184.0,0.15547269]
[1724176961337,0.11894563,59185.0,59184.0,0.17101996]
[1724176961539,0.11894563,59185.0,59184.0,0.15647269]
[1724176961734,0.09360479,59185.0,59184.0,0.15647269]
[1724176962136,0.06726532,59185.0,59184.0,0.15547269]
[1724176962592,0.06726532,59185.0,59184.0,0.15747269]
[1724176963032,0.01658585,59185.0,59184.0,0.15747269]
[1724176964965,0.01658585,59185.0,59184.0,0.15547269]
[1724176965169,0.01758585,59185.0,59184.0,0.16447269]
[1724176965377,0.01858585,59185.0,59184.0,0.16447269]
[1724176965549,0.001821,59185.0,59184.0,0.15547269]
[1724176965987,0.05067609,59198.0,59184.0,0.15547269]
[1724176965988,0.05067609,59198.0,59193.0,0.2968]
[1724176966192,0.07601556,59199.0,59193.0,0.2968]
[1724176966193,0.05067609,59199.0,59193.0,0.2968]
[1724176966395,0.05067609,59200.0,59196.0,0.1421]
[1724176966603,0.05067609,59202.0,59194.0,0.00337831]
[1724176966833,0.2,59203.0,59194.0,0.00337831]
[1724176966834,0.2,59203.0,59194.0,0.03339614]
[1724176967054,0.2,59203.0,59195.0,0.1419]
[1724176967290,0.2,59203.0,59198.0,0.0778]
[1724176967493,0.2,59203.0,59194.0,0.03339614]
[1724176967494,0.2,59203.0,59200.0,0.0778]
[1724176967695,0.2,59203.0,59200.0,0.0768]
[1724176968130,0.01575952,59202.0,59200.0,0.0768]
[1724176968383,0.01575952,59201.0,59200.0,0.0768]
[1724176969589,0.01575952,59202.0,59200.0,0.0768]
[1724176970461,0.01575952,59202.0,59201.0,0.0637]
[1724176970697,0.01675952,59202.0,59201.0,0.139]
[1724176970920,0.01676049,59202.0,59201.0,0.139]
[1724176971397,0.01576049,59202.0,59201.0,0.139]
[1724176972766,0.01576049,59202.0,59201.0,0.1529]
[1724176972767,0.01676049,59202.0,59201.0,0.1529]
[1724176972983,0.001,59202.0,59201.0,0.15627762]
[1724176973692,0.000821,59207.0,59201.0,0.139]
[1724176973886,0.000821,59207.0,59200.0,0.2968]
[1724176974121,0.000821,59207.0,59204.0,0.0789]
[1724176975979,0.001821,59207.0,59204.0,0.0789]
[1724176976226,0.001821,59207.0,59204.0,0.0929]
[1724176976419,0.000821,59207.0,59204.0,0.0929]
[1724176976773,0.001821,59207.0,59204.0,0.025]
[1724176976999,0.001821,59207.0,59205.0,0.0814]
[1724176977346,0.001821,59207.0,59206.0,0.142]
[1724176977885,0.000821,59207.0,59206.0,0.142]
[1724176978876,0.000821,59207.0,59206.0,0.155]
[1724176979296,0.001821,59207.0,59206.0,0.155]
[1724176979905,0.000821,59207.0,59206.0,0.155]
[1724176980104,0.001821,59207.0,59206.0,0.167]
[1724176980301,0.001821,59207.0,59206.0,0.48083778]
[1724176980705,0.001821,59207.0,59206.0,0.58083778]
[1724176980905,0.001821,59207.0,59206.0,0.5638]
[1724176982134,0.001821,59207.0,59206.0,0.167]
[1724176982694,0.001821,59207.0,59206.0,0.1032]
[1724176983176,0.01757943,59207.0,59206.0,0.1032]
[1724176983349,0.01757943,59207.0,59206.0,0.0912]
[1724176983350,0.01652943,59207.0,59206.0,0.0912]
[1724176983565,0.01652943,59207.0,59206.0,0.013]
[1724176983724,0.01752943,59207.0,59206.0,0.019]
[1724176984122,0.01752943,59207.0,59203.0,0.1401]
[1724176984123,0.01652943,59207.0,59203.0,0.1401]
[1724176984338,0.01575843,59206.0,59203.0,0.0781]
[1724176985827,0.01575843,59206.0,59203.0,0.0861]
[1724176986650,0.01575849,59205.0,59203.0,0.0921]
[1724176986849,0.01575849,59204.0,59203.0,0.0921]
[1724176987057,0.01575849,59204.0,59203.0,0.0861]
[1724176987463,0.01575849,59204.0,59203.0,0.0851]
[1724176987931,0.01575849,59204.0,59203.0,0.0871]
[1724176988118,0.01575849,59204.0,59203.0,0.0781]
[1724176988341,0.01675849,59204.0,59203.0,0.0871]
[1724176988458,0.01675849,59204.0,59203.0,0.0971]
[1724176988913,0.01675849,59204.0,59203.0,0.0980031]
[1724176991556,0.32238449,59204.0,59203.0,0.0199031]
[1724176991803,0.34638449,59204.0,59203.0,0.0199031]
[1724176991990,0.34538775,59204.0,59203.0,0.0199031]
[1724176992121,0.88889175,59204.0,59203.0,0.0199031]
[1724176992324,0.91535611,59204.0,59203.0,0.0199031]
[1724176992595,0.91535611,59204.0,59203.0,0.0332031]
[1724176993402,0.91535611,59204.0,59203.0,0.0232031]
[1724176993573,0.91735611,59204.0,59203.0,0.0142031]
[1724176993983,0.91435611,59204.0,59203.0,0.0142031]
[1724176994208,0.91935611,59204.0,59203.0,0.0142031]
[1724176994417,0.92135611,59204.0,59203.0,0.0142031]
[1724176994611,0.91735611,59204.0,59203.0,0.0142031]
[1724176995113,0.92135611,59204.0,59203.0,0.0142031]
[1724176995517,0.64810411,59204.0,59203.0,0.0142031]
[1724176995746,0.92135611,59204.0,59203.0,0.0142031]
[1724176995900,0.97174194,59204.0,59203.0,0.0142031]
[1724176996102,0.70148994,59204.0,59203.0,0.0142031]
[1724176996388,0.92135611,59204.0,59203.0,0.0142031]
[1724176996794,0.65110411,59204.0,59203.0,0.0142031]
[1724176996998,0.64810411,59204.0,59203.0,0.0142031]
[1724176997198,0.91835611,59204.0,59203.0,0.0142031]
[1724176997365,0.99702555,59204.0,59203.0,0.0142031]
[1724176998182,0.9812638,59204.0,59203.0,0.0142031]
[1724176998342,0.9213577,59204.0,59203.0,0.0142031]
[1724176998932,0.6481057,59204.0,59203.0,0.0142031]
[1724176999142,0.72381465,59204.0,59203.0,0.0142031]
[1724176999343,0.6481057,59204.0,59203.0,0.0142031]
[1724176999895,0.0792277,59204.0,59203.0,0.0897031]
[1724177000128,0.13850833,59204.0,59203.0,0.0897031]
[1724177000302,0.0792277,59204.0,59203.0,0.0897031]
[1724177000499,0.13850258,59204.0,59203.0,0.0897031]
[1724177000709,0.11203822,59204.0,59203.0,0.0897031]
[1724177000886,0.10803822,59204.0,59203.0,0.0897031]
[1724177001085,0.01876334,59204.0,59203.0,0.0897031]
[1724177001289,0.02176334,59204.0,59203.0,0.1521031]
[1724177001706,0.01576334,59204.0,59203.0,0.1521031]
[1724177001910,0.01676334,59204.0,59203.0,0.1521031]
[1724177002256,0.01676334,59204.0,59203.0,0.46411341]
[1724177002599,0.01676334,59204.0,59203.0,0.4489031]
[1724177003445,0.01576334,59204.0,59203.0,0.4489031]
[1724177003641,0.01676334,59204.0,59203.0,0.4599031]
[1724177004025,0.01576334,59204.0,59203.0,0.4489031]
[1724177004223,0.01676334,59204.0,59203.0,0.4629031]
[1724177004451,0.002,59204.0,59203.0,0.52121969]
[1724177005183,0.000771,59207.0,59204.0,0.1432]
[1724177005383,0.01575615,59206.0,59203.0,0.37231969]
[1724177005628,0.000771,59207.0,59204.0,0.1]
[1724177005826,0.000771,59207.0,59204.0,0.10337742]
[1724177006031,0.000771,59207.0,59206.0,0.1462]
[1724177006142,0.000771,59207.0,59206.0,0.14957738]
[1724177006345,0.000771,59207.0,59206.0,0.20806171]
[1724177006583,0.000771,59207.0,59206.0,0.20706171]
[1724177007264,0.000771,59207.0,59206.0,0.20606171]
[1724177007560,0.001771,59207.0,59206.0,0.21706171]
[1724177007846,0.002771,59207.0,59206.0,0.22768433]
[1724177008053,0.002771,59207.0,59206.0,0.1692]
[1724177010129,0.002585,59207.0,59206.0,0.1692]
[1724177011487,0.01834118,59207.0,59206.0,0.1692]
[1724177014077,0.0181379,59207.0,59206.0,0.1062]
[1724177014283,0.0181379,59207.0,59206.0,0.025]
[1724177014927,0.0181379,59207.0,59206.0,0.0119031]
[1724177014928,0.0171379,59207.0,59206.0,0.0119031]
[1724177015529,0.0171379,59207.0,59206.0,0.0189031]
[1724177016108,0.0171379,59207.0,59206.0,0.0984031]
[1724177016316,0.0171379,59207.0,59206.0,0.0874031]
[1724177016317,0.0161379,59207.0,59206.0,0.0874031]
[1724177016755,0.0161379,59207.0,59206.0,0.0934031]
[1724177016756,0.0171379,59207.0,59206.0,0.0934031]
[1724177017419,0.01713996,59207.0,59206.0,0.0934031]
[1724177020003,0.01713996,59207.0,59206.0,0.17327372]
[1724177020245,0.01713996,59207.0,59206.0,0.1561031]
[1724177020749,0.00138172,59207.0,59206.0,0.1561031]
[1724177022630,0.04862075,59217.0,59206.0,0.1663597]
[1724177022766,0.01575582,59216.0,59207.0,0.0773]
[1724177022965,0.01575582,59215.0,59209.0,0.0633]
[1724177023170,0.01575582,59214.0,59210.0,0.0773]
[1724177023388,0.01575582,59213.0,59210.0,0.0773]
[1724177023610,0.04862075,59217.0,59210.0,0.09541757]
[1724177023611,0.01575582,59212.0,59210.0,0.09541757]
[1724177023814,0.04862075,59217.0,59210.0,0.09541757]
[1724177023815,0.01575582,59211.0,59210.0,0.09541757]
[1724177024839,0.01575582,59211.0,59210.0,0.15871757]
[1724177025039,0.01575582,59211.0,59210.0,0.16209482]
[1724177025259,0.01575512,59211.0,59210.0,0.02349482]
[1724177025430,0.0002,59219.0,59215.0,0.1413]
[1724177025671,0.0002,59219.0,59218.0,0.3601]
[1724177026005,0.0002,59219.0,59218.0,0.4381]
[1724177026140,0.0002,59219.0,59218.0,0.5381]
[1724177027377,0.0002,59219.0,59218.0,0.5521]
[1724177027580,0.0002,59219.0,59218.0,0.60741]
[1724177027779,0.0012,59219.0,59218.0,0.63067149]
[1724177028400,0.0002,59219.0,59218.0,0.60367149]
[1724177029007,0.0002,59219.0,59218.0,0.5381]
[1724177029218,0.0002,59219.0,59211.0,0.04588948]
[1724177029219,0.2002,59219.0,59211.0,0.0755]
[1724177029834,0.00761117,59218.0,59211.0,0.0755]
[1724177030045,0.0002,59219.0,59214.0,0.0755]
[1724177030209,0.0002,59219.0,59218.0,0.011]
[1724177030210,0.0012,59219.0,59218.0,0.011]
[1724177030458,0.0012,59219.0,59218.0,0.025]
[1724177030655,0.03100002,59227.0,59218.0,0.011]
[1724177030857,0.2,59224.0,59218.0,0.011]
[1724177031018,0.08100002,59223.0,59218.0,0.011]
[1724177031217,0.08757246,59223.0,59214.0,0.0755]
[1724177031750,0.08757246,59223.0,59218.0,0.014]
[1724177032907,0.08757246,59223.0,59198.0,0.49329154]
[1724177032908,0.00100002,59222.0,59208.0,0.082]
[1724177033163,0.2,59215.0,59208.0,0.182]
[1724177033363,0.2,59215.0,59208.0,0.082]
[1724177033581,0.00757174,59214.0,59208.0,0.082]
[1724177033941,0.00757174,59214.0,59206.0,0.0009031]
[1724177033942,0.00857176,59214.0,59206.0,0.0009031]
[1724177034347,0.00857176,59214.0,59208.0,0.024]
[1724177034754,0.00857176,59214.0,59206.0,0.0009031]
[1724177034928,0.00857176,59214.0,59208.0,0.001]
[1724177035354,0.00757174,59214.0,59208.0,0.001]
[1724177035813,0.00757174,59214.0,59209.0,0.08457759]
[1724177036018,0.00757174,59214.0,59210.0,0.0661]